[Event "44th Chess Olympiad Open 2022"]
[Site "Chennai"]
[Date "2022.07.29"]
[Round "1.2"]
[White "Silva, David"]
[Black "Aronian, Levon"]
[Result "1/2-1/2"]
[WhiteElo "2315"]
[BlackElo "2775"]
[Annotator "TA"]
[PlyCount "82"]
[EventDate "2022.??.??"]
[TimeControl "60"]

{[%evp 9,82,24,27,35,28,17,18,17,19,16,12,18,13,-14,0,-34,-10,-5,-5,-7,-5,-10,
-11,-8,-3,-23,10,2,27,17,20,15,52,37,64,35,60,54,63,47,82,83,137,122,142,109,
117,76,67,56,80,101,107,70,79,71,100,94,109,84,89,70,61,73,107,108,136,125,156,
156,219,112,141,145,187]} 1. e4 {[%emt 0:00:04]} c5 {[%emt 0:00:12]} 2. Nf3 {
[%emt 0:03:51]} d6 {[%emt 0:00:06]} 3. Bb5+ {[%emt 0:02:11]} Nd7 {[%emt 0:00:
00]} 4. c3 {[%emt 0:01:11]} Ngf6 {[%emt 0:00:32]} 5. Bd3 {[%emt 0:00:50]} Ne5 {
[%emt 0:02:29]} 6. Nxe5 {[%emt 0:00:07] B51: Sicilian: Moscow Variation (3
Bb5+) without 3...Bd7.} dxe5 {[%emt 0:00:03]} 7. Bc2 {[%emt 0:00:13]} g6 {
[%emt 0:00:55]} 8. d3 {[%emt 0:02:15] The position is equal.} Bg7 {[%emt 0:00:
00] [#]} 9. Be3 $146 {[%emt 0:00:25]} ({Predecessor:} 9. O-O O-O 10. Nd2 Qc7
11. a4 Rd8 12. Qe2 Nh5 13. g3 Bh6 14. Nc4 Bxc1 15. Rfxc1 {0-1 (40) Kuhn,C 
(2240)-Bernadskiy,V (2600) Bassano del Grappa 2021}) 9... b6 {[%emt 0:00:13]}
10. O-O {[%emt 0:05:58]} O-O {[%emt 0:01:07]} 11. h3 {[%emt 0:01:01]} Ba6 {
[%emt 0:00:40]} 12. Re1 {[%emt 0:04:07]} Qd6 {[%emt 0:00:44]} 13. Na3 {[%emt 0:
00:00]} Rad8 {[%emt 0:02:02][%cal Ra6d3]} 14. Qf3 {[%emt 0:00:24]} Nh5 {
[%emt 0:01:54]} (14... Bxd3 $2 15. Red1 $18) 15. Rad1 {[%emt 0:06:12]} Bb7 {
[%emt 0:00:08]} 16. Bb3 {[%emt 0:04:16]} Kh8 {[%emt 0:01:00]} 17. Qg4 {[%emt 0:
00:00]} ({Not} 17. Bxf7 $2 e6 18. Rd2 Qc6 $19) 17... Qc6 {[%emt 0:01:06]} 18.
Bd5 {[%emt 0:03:15]} Rxd5 {[%emt 0:00:50]} 19. exd5 {[%emt 0:00:09]} Qxd5 {
[%emt 0:00:03] [#] Threatens to win with ...f5.} 20. f3 {[%emt 0:01:03]} Qc6 {
[%emt 0:08:24]} 21. Qc4 {[%emt 0:08:11]} Qd6 {[%emt 0:02:33]} 22. Qa4 {[%emt 0:
00:00]} Qb8 {[%emt 0:12:44]} 23. b4 {[%emt 0:03:33]} cxb4 {[%emt 0:00:00]} 24.
Qxb4 {[%emt 0:04:35]} Re8 {[%emt 0:00:00]} 25. c4 {[%emt 0:00:22]} Nf6 {
[%emt 0:00:00]} ({Better is} 25... Bf6) 26. Nb5 {[%emt 0:01:53]} Nd7 {[%emt 0:
00:00]} 27. a4 {[%emt 0:02:53] White is much more active.} a5 {[%emt 0:01:36]}
28. Qb1 {[%emt 0:00:53]} Kg8 {[%emt 0:02:03]} 29. Bf2 {[%emt 0:05:15]} Bc6 {
[%emt 0:02:17]} 30. Qb3 {[%emt 0:01:13]} Nc5 {[%emt 0:08:48]} 31. Bxc5 {
[%emt 0:07:25]} bxc5 {[%emt 0:00:08]} 32. Qc2 {[%emt 0:00:07]} Bd7 {[%emt 0:00:
00]} 33. Rb1 {[%emt 0:02:16]} Rc8 {[%emt 0:07:25]} 34. Qd2 {[%emt 0:02:09]} Qb6
{[%emt 0:00:36]} 35. Rb3 {[%emt 0:01:01]} Qd8 {[%emt 0:02:18]} 36. Reb1 {
[%emt 0:00:26]} Rb8 {[%emt 0:03:18]} 37. Qe3 {[%emt 0:04:13]} e4 {[%emt 0:00:
00]} 38. Qxe4 {[%emt 0:00:22]} ({Inferior is} 38. dxe4 {[#]} Rxb5 $1 39. axb5 (
39. cxb5 $2 {perishes.} Bd4 $19) 39... Bd4 40. Qxd4 cxd4 $17) 38... e6 {
[%emt 0:00:07] Prevents Qd5.} 39. Qf4 {[%emt 0:03:14] And now Nd6 would win.}
Be8 {[%emt 0:04:54]} (39... Bf6 $16 40. Kh1 Rb7) 40. Kh1 {[%emt 0:00:00]} (40.
Qd6 $18) 40... h5 {[%emt 0:00:53]} 41. Qd6 {[%emt 0:31:10]} Bf8 {[%emt 0:33:30]
Weighted Error Value: White=0.11 (very precise) /Black=0.17 (very precise)}
1/2-1/2

[Event "44th Chess Olympiad Open 2022"]
[Site "Chennai"]
[Date "2022.07.29"]
[Round "1.2"]
[White "Dias, Vanderson"]
[Black "Dominguez Perez, Leinier"]
[Result "0-1"]
[WhiteElo "2139"]
[BlackElo "2754"]
[Annotator "TA"]
[PlyCount "60"]
[EventDate "2022.??.??"]
[TimeControl "60"]

{[%evp 14,60,0,-7,4,0,0,-30,-33,-33,-35,-43,-38,-43,-35,-54,-50,-52,-52,-60,
-47,-61,-47,-47,-47,-47,-47,-47,-53,-52,-45,-62,-57,-97,-88,-72,-69,-78,-68,
-124,-129,-304,-281,-418,-393,-494,-494,-483,-476]} 1. e4 {[%emt 0:00:12]} c5 {
[%emt 0:00:10]} 2. Nf3 {[%emt 0:00:32]} d6 {[%emt 0:00:07]} 3. d4 {[%emt 0:00:
00]} cxd4 {[%emt 0:00:07]} 4. Nxd4 {[%emt 0:00:12]} Nf6 {[%emt 0:00:07]} 5. Nc3
{[%emt 0:00:08]} a6 {[%emt 0:00:06]} 6. Be2 {[%emt 0:08:51]} e5 {[%emt 0:00:08]
} 7. Nf3 {[%emt 0:02:34]} Be7 {[%emt 0:00:20]} 8. Bg5 {[%emt 0:07:06]} Be6 {
[%emt 0:00:09] B92: Sicilian Najdorf: 6 Be2.} 9. O-O {[%emt 0:02:02]} Nbd7 $1 {
[%emt 0:00:12] The main line 9...Nbd7 scores better than 9...0-0.} 10. Qd2 {
[%emt 0:21:42]} Rc8 $5 {[%emt 0:01:18] Black has an edge. Leaves trodden paths.
} 11. Bxf6 {[%emt 0:01:47]} Nxf6 {[%emt 0:00:24]} 12. h3 {[%emt 0:22:23]} O-O {
[%emt 0:08:14] [#]} 13. Bd3 $146 {[%emt 0:02:13]} ({Predecessor:} 13. Rfd1 Qb6
14. Rab1 Qc6 15. Bd3 h6 16. Nh4 Bd8 17. Nf5 Bxf5 18. exf5 d5 19. g4 {0-1 (26)
Shim Ng Min,F (1217)-Firnhaber,I (2380) LSS email 2018}) 13... h6 {[%emt 0:07:
42]} 14. Rfe1 {[%emt 0:07:43]} Qb6 {[%emt 0:06:32]} 15. Na4 {[%emt 0:04:29]}
Qc6 {[%emt 0:02:41]} 16. b3 {[%emt 0:02:08]} b5 {[%emt 0:00:00]} 17. Nb2 {
[%emt 0:00:09]} Nd7 {[%emt 0:00:41]} 18. c4 {[%emt 0:02:28]} Nc5 {[%emt 0:00:
06]} 19. cxb5 {[%emt 0:01:50]} axb5 {[%emt 0:00:05]} 20. Rac1 {[%emt 0:05:59]}
Qa8 {[%emt 0:21:56]} 21. Bb1 {[%emt 0:00:52]} Qa3 {[%emt 0:00:00]} 22. Nd3 {
[%emt 0:01:38]} Bd8 $1 {[%emt 0:02:46][%cal Ye7d8,Yd8a5,Ya5b4,Yb4a3]} 23. Qb2 {
[%emt 0:01:18]} Qxb2 {[%emt 0:00:42]} 24. Nxb2 {[%emt 0:00:01]} Ba5 {[%emt 0:
00:07]} 25. Red1 {[%emt 0:00:25]} Bb4 {[%emt 0:00:00]} 26. Nd3 {[%emt 0:01:49]}
(26. Rc2 $1 $15) 26... Ba3 $17 {[%emt 0:00:09] Black is more active.} 27. Rc2
$2 {[%emt 0:00:29] [#] White does not recover from this.} (27. Nxc5 $17 {
is the only way for White.} Bxc1 28. Nxe6 fxe6 29. Rxd6) 27... Nxe4 $19 {
[%emt 0:00:19] White must now prevent ...Nc3.} 28. Rxc8 {[%emt 0:00:28]} (28.
Ndxe5 $142 Rxc2 29. Bxc2) 28... Rxc8 {[%emt 0:00:06]} 29. Nd2 {[%emt 0:00:38]}
Nxd2 {[%emt 0:00:34]} 30. Rxd2 {[%emt 0:00:06]} e4 {[%emt 0:00:05] Weighted
Error Value: White=0.29 (precise) /Black=0.02 (flawless)} 0-1

[Event "44th Chess Olympiad Open 2022"]
[Site "Chennai"]
[Date "2022.07.29"]
[Round "1.3"]
[White "Hammer, Jon Ludvig"]
[Black "El Jawich, Amro"]
[Result "1-0"]
[WhiteElo "2638"]
[BlackElo "2314"]
[Annotator "TA"]
[PlyCount "65"]
[EventDate "2022.??.??"]
[TimeControl "60"]

{[%evp 18,65,15,6,6,19,14,15,13,10,16,22,16,22,19,16,72,67,67,64,69,79,76,0,66,
72,79,68,75,59,79,51,92,72,105,93,158,169,156,157,264,238,293,293,286,283,256,
248,1963,1852]} 1. d4 {[%emt 0:00:03]} Nf6 {[%emt 0:00:11]} 2. c4 {[%emt 0:00:
00]} g6 {[%emt 0:00:07]} 3. g3 {[%emt 0:00:35]} Bg7 {[%emt 0:00:15]} 4. Bg2 {
[%emt 0:00:09]} O-O {[%emt 0:00:28]} 5. Nc3 {[%emt 0:00:18]} d6 {[%emt 0:00:29]
} 6. Nf3 {[%emt 0:00:07]} c5 {[%emt 0:00:24]} 7. O-O {[%emt 0:07:43]} Nc6 {
[%emt 0:00:51]} 8. dxc5 {[%emt 0:07:35]} dxc5 {[%emt 0:00:18]} 9. Be3 {[%emt 0:
00:00]} Be6 {[%emt 0:11:05]} 10. Ng5 {[%emt 0:09:18]} Qxd1 {[%emt 0:06:06] E65:
King's Indian: Fianchetto: 6...c5 7 0-0 without d5 by White.} 11. Rfxd1 {
[%emt 0:00:26]} Bxc4 {[%emt 0:01:14]} 12. Bxc5 {[%emt 0:00:57]} h6 {[%emt 0:00:
00] The position is equal.} 13. Nf3 {[%emt 0:00:10]} Rfd8 {[%emt 0:12:44] [#]}
14. Nd2 $146 {[%emt 0:21:29]} ({Predecessor:} 14. Nd4 Nxd4 15. Bxd4 Rd7 16.
Rac1 Rad8 17. Bxa7 Rxd1+ 18. Rxd1 Rxd1+ 19. Nxd1 b5 20. Bc5 {1-0 (57) Trkulja,
G (2395)-Bejtovic,J (2391) Jahorina 2012}) 14... Ba6 {[%emt 0:10:03]} 15. Bxc6
{[%emt 0:01:35]} bxc6 {[%emt 0:03:23]} 16. Bxe7 {[%emt 0:00:08]} Re8 {[%emt 0:
00:00]} (16... Rdb8 $1 $11) 17. Bxf6 $16 {[%emt 0:00:58]} Bxf6 {[%emt 0:00:06]}
18. e3 {[%emt 0:00:44]} Rab8 {[%emt 0:08:38]} 19. Nb3 {[%emt 0:00:47]} Bc4 {
[%emt 0:04:03]} 20. Na5 {[%emt 0:00:11]} (20. Rd2 $16) 20... Bxc3 {[%emt 0:00:
00]} (20... Be6 $11) 21. Nxc4 $14 {[%emt 0:01:59]} Bxb2 {[%emt 0:01:19]} 22.
Rab1 $36 {[%emt 0:00:06] White is more active.} Bg7 {[%emt 0:04:51]} 23. Kf1 {
[%emt 0:00:08]} h5 {[%emt 0:01:29]} 24. h4 {[%emt 0:08:21]} c5 {[%emt 0:04:23]}
25. a3 {[%emt 0:01:23]} Bf8 {[%emt 0:01:48]} 26. Ke2 {[%emt 0:00:00]} Kg7 {
[%emt 0:00:28]} (26... Rxb1 $142 27. Rxb1 Kg7) 27. Rxb8 $16 {[%emt 0:02:31]
White is more active.} Rxb8 {[%emt 0:00:01] Endgame KRB-KRN} 28. Rd7 {[%emt 0:
00:15]} Rb3 {[%emt 0:01:50]} (28... a5 $16 29. Ra7 (29. Nxa5 Rb1 $16) 29... Rb3
) 29. Kd2 {[%emt 0:00:25]} Kf6 {[%emt 0:00:29]} 30. Kc2 {[%emt 0:00:25]} ({
Much less strong is} 30. Rxa7 $6 Rb1 31. a4 Ke6 $18) 30... Rb8 {[%emt 0:00:31]}
31. Rxa7 {[%emt 0:00:09]} Ke6 {[%emt 0:00:10]} 32. Ra6+ {[%emt 0:00:54]} Kf5 $2
{[%emt 0:00:48] [#]} (32... Kd5) 33. f3 {[%emt 0:00:00] Weighted Error Value:
White=0.08 (flawless) /Black=0.28 (precise)} 1-0

[Event "44th Chess Olympiad Open 2022"]
[Site "Chennai"]
[Date "2022.07.29"]
[Round "1.3"]
[White "Urkedal, Frode Olav Olsen"]
[Black "Kassis, Antoine"]
[Result "1-0"]
[WhiteElo "2555"]
[BlackElo "2202"]
[Annotator "TA"]
[PlyCount "45"]
[EventDate "2022.??.??"]
[TimeControl "60"]

{[%evp 12,45,62,23,41,71,102,108,115,113,130,125,118,110,167,168,134,134,272,
262,345,341,397,375,555,533,900,902,1744,1439,1746,1671,1640,1550,1688,1634]} 
1. d4 {[%emt 1:31:00]} Nf6 {[%emt 0:00:08]} 2. c4 {[%emt 0:00:00]} c5 {[%emt 0:
00:00]} 3. d5 {[%emt 0:00:00]} b5 {[%emt 0:00:29]} 4. cxb5 {[%emt 0:00:00]} a6
{[%emt 0:00:07]} 5. e3 {[%emt 0:00:00][%cal Ye2e3,Ye3e4,Ye4d5]} e6 {[%emt 0:02:
50]} 6. Nc3 {[%emt 0:00:00]} Bb7 {[%emt 0:26:22]} 7. e4 {[%emt 0:00:00]} axb5 {
[%emt 0:05:06] A57: Benko/Volga Gambit.} 8. Bxb5 {[%emt 0:00:00]} exd5 {
[%emt 0:35:54]} 9. exd5 {[%emt 0:00:00]} Bd6 {[%emt 0:01:28] White is better.}
10. Nf3 {[%emt 0:00:00][%cal Yg1f3,Yf3d2,Yd2c4]} O-O {[%emt 0:02:57]} 11. O-O {
[%emt 0:00:00]} h6 {[%emt 0:01:42]} 12. Re1 {[%emt 0:00:00] [#]} Qb6 $146 {
[%emt 0:01:42]} (12... Na6 $16) ({Predecessor:} 12... Na6 13. Bc4 Qb6 14. b3
Rfe8 15. Rxe8+ Rxe8 16. Bb2 Ng4 17. h3 Ne5 18. Na4 Qa5 {1-0 (38) Stal,C (2391)
-Ljubicic,L (2295) ICCF corr 1997}) 13. Nd2 $18 {[%emt 0:00:00]} Qc7 {[%emt 0:
08:27]} 14. Nc4 {[%emt 0:00:00]} Bxh2+ {[%emt 0:00:28] This costs Black the
game.} (14... Na6 $16 {is a better defense.} 15. g3 (15. Nxd6 Qxd6 16. g3 Nc7
$16) 15... Nb4 16. Nxd6 Qxd6) 15. Kh1 {[%emt 0:00:00]} Bd6 {[%emt 0:00:32]} 16.
Qf3 {[%emt 0:00:00][%cal Yc1h6] aiming for Bxh6!} Ne8 {[%emt 0:05:47]} 17. Qg4
{[%emt 0:00:00] Threatens to win with Bxh6.} Kh8 {[%emt 0:01:40]} (17... Nf6
$142 18. Qf5 Ne8 19. Bxh6 gxh6) 18. Qh4 {[%emt 0:00:00] White is clearly
winning.} Na6 {[%emt 0:01:32] [#]} 19. Bxh6 $1 {[%emt 0:00:00]} gxh6 {[%emt 0:
00:20]} (19... Kg8 20. Qg4) 20. Qxh6+ {[%emt 0:00:00]} Kg8 {[%emt 0:00:05] [#]}
21. Rxe8 $1 {[%emt 0:00:00] Remove Defender} Raxe8 {[%emt 0:01:48]} 22. Nxd6 {
[%emt 0:00:00] Pair of Knights!} Re5 {[%emt 0:00:13] Prevents Qg5+.} 23. Nce4 {
[%emt 0:00:00] Weighted Error Value: White=0.01 (flawless) /Black=0.64} 1-0

[Event "44th Chess Olympiad Open 2022"]
[Site "Chennai"]
[Date "2022.07.29"]
[Round "1.3"]
[White "Khairallah, Faisal"]
[Black "Christiansen, Johan-Sebastian"]
[Result "1/2-1/2"]
[WhiteElo "2239"]
[BlackElo "2593"]
[Annotator "TA"]
[PlyCount "50"]
[EventDate "2022.??.??"]
[TimeControl "60"]

{[%evp 9,50,-12,-7,0,0,0,0,0,47,57,103,86,248,236,325,317,376,113,463,136,125,
101,351,342,455,420,476,501,535,581,567,535,582,427,421,418,375,0,231,0,352,0,
219]} 1. e4 {[%emt 0:00:05]} e6 {[%emt 0:01:58]} 2. b3 {[%emt 0:04:00]} d5 {
[%emt 0:00:19]} 3. Bb2 {[%emt 0:00:12]} dxe4 {[%emt 0:08:25]} 4. Nc3 {[%emt 0:
00:00]} Nf6 {[%emt 0:07:24]} 5. Qe2 {[%emt 0:00:08]} Nc6 {[%emt 0:01:46]} 6.
O-O-O {[%emt 0:03:49] C00: French: Unusual White 2nd moves.} Nd4 {[%emt 0:00:
00]} 7. Qe1 {[%emt 0:00:51]} Be7 {[%emt 0:02:28]} 8. d3 {[%emt 0:14:19] [#]} e5
$146 {[%emt 0:07:01]} (8... exd3 $11 9. Bxd3 c6) ({Predecessor:} 8... exd3 9.
Bxd3 Bd7 10. Nce2 c5 11. Nxd4 cxd4 12. Nf3 Bc5 13. Qe5 Qb6 14. Nxd4 O-O {
1-0 (41) Hering,H (2194)-Ginzborsky,L (2196) ICCF email 2013}) 9. dxe4 $14 {
[%emt 0:03:07][%cal Yf2f4] Hoping for f4!} Nd7 {[%emt 0:14:24]} (9... O-O $14)
10. f4 {[%emt 0:03:41]} Nc6 $2 {[%emt 0:03:54]} (10... c6 $16) 11. Nd5 {
[%emt 0:01:45]} O-O {[%emt 0:11:40]} 12. Nf3 {[%emt 0:05:04]} exf4 {[%emt 0:00:
00]} 13. Kb1 $2 {[%emt 0:03:17]} (13. g3 $18) 13... Re8 $2 {[%emt 0:01:11]} (
13... Bd6 $16 {is a better chance.}) 14. Nxf4 $2 {[%emt 0:02:40]} (14. g3 $18 {
is the precise move to win.}) 14... Bf6 $16 {[%emt 0:05:16]} 15. e5 {[%emt 0:
02:34] White is more active.} Bxe5 $2 {[%emt 0:00:37]} (15... Ncxe5 $16 {
was necessary.} 16. Qg3 Nxf3 17. Bxf6 Qxf6) 16. Nxe5 $18 {[%emt 0:02:24]} Ncxe5
{[%emt 0:00:03]} 17. Qg3 {[%emt 0:07:48] [#] Prevents Nd3. aiming for Nh5.} ({
Not} 17. Bxe5 Qg5 $11) 17... h6 {[%emt 0:00:02]} 18. h4 {[%emt 0:02:10]
Against Qg5} Qe7 {[%emt 0:04:25]} 19. Bc4 {[%emt 0:04:26] And now Nh5 would
win. This bishop pair is nice.} Kh8 {[%emt 0:06:11]} 20. Rhe1 {[%emt 0:01:03]}
c6 {[%emt 0:00:21]} 21. Nd3 {[%emt 0:06:47][%cal Rd3e5]} f6 {[%emt 0:00:15]}
22. Nf4 {[%emt 0:00:20] [#] Threatens to win with Bxe5.} Nf8 {[%emt 0:00:08]}
23. Nd3 {[%emt 0:01:57][%cal Rd3e5]} Nfd7 {[%emt 0:00:21]} 24. Nf4 {[%emt 0:00:
00]} (24. Bxe5 $142 fxe5 25. Nf4) 24... Nf8 {[%emt 0:00:01]} 25. Nd3 {[%emt 0:
00:00][%cal Rd3e5]} Nfd7 $1 {[%emt 0:00:01] Weighted Error Value: White=0.95/
Black=0.59} 1/2-1/2

[Event "44th Chess Olympiad Open 2022"]
[Site "Chennai"]
[Date "2022.07.29"]
[Round "1.3"]
[White "Kaloust, Giorgio"]
[Black "Tari, Aryan"]
[Result "0-1"]
[WhiteElo "1942"]
[BlackElo "2672"]
[Annotator "TA"]
[PlyCount "60"]
[EventDate "2022.??.??"]
[TimeControl "60"]

{[%evp 12,60,-4,4,24,23,24,-17,-24,-68,-23,-33,-37,-55,-69,-63,-39,-141,-61,
-79,-57,-105,-87,-87,-87,-152,-89,-95,-89,-93,-83,-73,-90,-81,0,-70,-68,-109,
-98,-106,-88,-141,-133,-650,-638,-1064,-1049,-29990,-29991,-29987,-1713]} 1. d4
{[%emt 0:00:04]} Nf6 {[%emt 0:00:18]} 2. c4 {[%emt 0:00:20]} e6 {[%emt 0:00:06]
} 3. g3 {[%emt 0:00:29]} d5 {[%emt 0:01:52]} 4. Bg2 {[%emt 0:00:40]} dxc4 {
[%emt 0:03:50]} 5. Nf3 {[%emt 0:01:26]} Nc6 {[%emt 0:00:08]} 6. O-O {[%emt 0:
00:00]} Rb8 {[%emt 0:00:16]} 7. a4 {[%emt 0:04:20]} Na5 {[%emt 0:08:32] E04:
Open Catalan: 5 Nf3.} 8. Nbd2 {[%emt 0:04:59] White has compensation.} b6 $5 {
[%emt 0:08:46] Exploring less charted territory.} 9. Qc2 {[%emt 0:05:47]} (9.
Ne5 $5 {[%cal Rd2c4]}) 9... Bb7 {[%emt 0:00:42] The position is equal.} 10. e4
{[%emt 0:11:12] [#]} (10. Nxc4 $2 Be4 11. Qd1 (11. Qc3 $2 Nd5 $19) 11... Nxc4
$19) 10... Be7 $146 {[%emt 0:08:05]} ({Predecessor:} 10... Bb4 11. e5 Nd5 12.
Nxc4 Nxc4 13. Qxc4 O-O 14. Bg5 Qd7 15. Rfc1 c5 16. Bd2 Rbc8 {0-1 (31) Pandey,S
(2026)-Grabinsky,V (2219) Chess.com INT 2020}) 11. Rd1 $1 {[%emt 0:06:25]} Nb3
{[%emt 0:10:12]} 12. Ra2 {[%emt 0:00:00]} O-O $36 {[%emt 0:02:53] Black fights
for an advantage.} 13. e5 {[%emt 0:14:40]} Nd5 {[%emt 0:02:12]} 14. Qxc4 {
[%emt 0:06:42]} ({White should play} 14. Nxc4 $15 Nxc1 15. Qxc1) 14... Nxc1 {
[%emt 0:04:24] Black is more active.} (14... Na5 $17 15. Qe2 Qd7) 15. Qxc1 {
[%emt 0:07:58]} Rc8 {[%emt 0:02:10][%cal Yb8c8,Yc8c7,Yc7d7]} 16. Nb3 {[%emt 0:
05:53]} (16. Nc4 $15) 16... c5 {[%emt 0:03:30]} 17. dxc5 {[%emt 0:00:56]} bxc5
{[%emt 0:00:00]} 18. Nfd2 {[%emt 0:03:08]} (18. Ra1 $142) 18... Nb4 {[%emt 0:
06:36]} (18... c4 $142 19. Nxc4 Ba6) 19. Bxb7 $17 {[%emt 0:07:52]} Nxa2 {
[%emt 0:00:10]} 20. Qb1 {[%emt 0:00:17]} Rc7 {[%emt 0:03:22]} 21. Be4 {[%emt 0:
00:10] [#] Threatens to win with Nc4.} Rd7 $1 {[%emt 0:00:47][%cal Yc5c4]
Hoping for ... c4!} 22. Bc6 {[%emt 0:04:01]} ({Wrong is} 22. Qxa2 $2 c4 23. Rc1
cxb3 24. Nxb3 Rd1+ 25. Kg2 Rxc1 26. Nxc1 Qd4 $19) ({Much weaker is} 22. Bxh7+
Kh8 23. Bc2 Nb4) 22... Rc7 {[%emt 0:02:11]} 23. Be4 {[%emt 0:00:07] And now
Nc4 would win.} Nb4 {[%emt 0:00:59][%cal Ya2b4,Yb4d3,Yd3f2]} 24. Bxh7+ {
[%emt 0:00:07]} Kh8 {[%emt 0:00:01] ...g6 is the strong threat.} 25. Nc4 {
[%emt 0:03:50]} Rd7 {[%emt 0:01:13]} 26. Re1 {[%emt 0:01:28]} (26. Rf1 $142)
26... Nd3 {[%emt 0:00:00]} 27. Rd1 {[%emt 0:00:37] This move loses the game
for White.} (27. Bxd3 $17 Rxd3 28. Nba5) 27... g6 $19 {[%emt 0:01:34]} ({
Worse is} 27... Kxh7 28. Nc1 $17) 28. Bxg6 {[%emt 0:00:27]} fxg6 {[%emt 0:00:
07]} 29. Nc1 {[%emt 0:00:32]} Nxf2 {[%emt 0:00:38]} 30. Rxd7 {[%emt 0:00:28] 
[#]} Qxd7 {[%emt 0:00:06] Weighted Error Value: White=0.77/Black=0.16 (very
precise)} (30... Qa8 $142 $1 31. Kf1 Qh1+ 32. Ke2 Bg5 33. Ne3 Bxe3 34. Qf5 Rxf5
35. Kxe3 Qxc1+ 36. Ke2 Qc2+ 37. Ke1 Nd3+ 38. Rxd3 Qxd3 39. h4 Rf1#) 0-1

[Event "44th Chess Olympiad Open 2022"]
[Site "Chennai"]
[Date "2022.07.29"]
[Round "1.4"]
[White "Shirov, Alexei"]
[Black "Toczek, Grzegorz"]
[Result "1-0"]
[WhiteElo "2704"]
[BlackElo "2287"]
[Annotator "TA"]
[PlyCount "53"]
[EventDate "2022.??.??"]
[TimeControl "60"]

{[%evp 9,53,0,0,0,0,0,0,0,0,0,0,0,0,-8,0,0,-18,0,0,0,98,-67,-69,-39,-56,-71,10,
20,18,0,0,0,99,95,82,68,64,70,97,95,105,88,50,91,879,851]} 1. e4 {[%emt 0:00:
00]} d6 {[%emt 0:00:17]} 2. d4 {[%emt 0:00:06]} Nf6 {[%emt 0:00:13]} 3. Nc3 {
[%emt 0:00:07]} e5 {[%emt 0:00:29]} 4. Nf3 {[%emt 0:00:41]} Nbd7 {[%emt 0:00:
00]} 5. g4 {[%emt 0:05:35]} Nxg4 {[%emt 0:01:11]} 6. Rg1 {[%emt 0:00:13] C41:
Philidor Defence.} Ngf6 {[%emt 0:00:04]} 7. Bc4 {[%emt 0:00:15]} h6 {[%emt 0:
00:00] Inhibits Ng5.} 8. dxe5 {[%emt 0:02:04] The position is equal.} dxe5 {
[%emt 0:00:04]} 9. Be3 {[%emt 0:00:10]} c6 {[%emt 0:05:03]} 10. Qd3 {[%emt 0:
00:00]} b5 {[%emt 0:02:18]} 11. Bb3 {[%emt 0:00:08]} Qa5 {[%emt 0:02:46]} 12.
O-O-O {[%emt 0:00:18]} Ba6 {[%emt 0:11:56] ...b4 is the strong threat.} 13. Nd2
$1 {[%emt 0:05:45]} Rd8 {[%emt 0:10:18]} 14. Qf1 {[%emt 0:15:04] [#]} (14. Bxa7
$2 b4 15. Nc4 Qc7 16. Rxg7 bxc3 17. Nd6+ Bxd6 18. Qxd6 Qxd6 19. Rxd6 Bb5 $19)
14... c5 $146 {[%emt 0:25:20]} (14... g6 $11 {remains equal.}) ({Predecessor:} 
14... Qc7 15. f4 Bb7 16. a4 a6 17. Kb1 exf4 18. Bxf4 Ne5 19. Nf3 Rxd1+ 20. Nxd1
Nxf3 21. Qxf3 {1-0 (46) Martin Carmona,G (2205)-Iglesias Leon,F (2172) Linares
2017}) 15. Nd5 $2 {[%emt 0:30:27]} (15. f4 $16) 15... c4 $15 {[%emt 0:00:00]}
16. Nxc4 $1 {[%emt 0:00:06]} bxc4 {[%emt 0:00:00]} 17. Bxc4 {[%emt 0:22:35]}
Bb7 {[%emt 0:15:03]} (17... Nxe4 18. Bxa6 Qxa2 19. Nc7+ Ke7 20. Nd5+ Ke8 21.
Nc7+ Ke7 22. Nd5+ Ke8 23. Nc7+ Ke7 $11) ({Black should play} 17... Bxc4 $17 18.
Qxc4 Bd6 19. Rxg7 (19. Nxf6+ Nxf6 20. Rxg7 Qc7 $17) 19... Nxd5 20. Rxd5 Qc7 21.
Qxc7 Bxc7) 18. Bd2 $11 {[%emt 0:00:00][%cal Ye3d2,Yd2b4,Yb4a5]} Qc5 $1 {
[%emt 0:00:05]} 19. Bb4 {[%emt 0:00:00]} Qc8 $1 {[%emt 0:00:06] aiming for ...
Bxd5.} 20. Ba5 {[%emt 0:11:56]} Nxd5 {[%emt 0:05:06]} ({Don't do} 20... Nxe4
21. Nc7+ Ke7 22. Qe2 $16 (22. Qh3 $2 Nb6 $17)) (20... Bxd5 $11 21. Bxd5 Be7)
21. Bxd5 $16 {[%emt 0:00:00] And now Qb5 would win.} Ba6 {[%emt 0:01:51] [#]
Against Qb5} 22. Qh3 {[%emt 0:00:00] Strongly threatening Qh5.} Nb6 $1 {
[%emt 0:00:59]} 23. Qh5 {[%emt 0:01:20][%csl Gd5,Ye5,Yf7][%cal Rh5f7]} Rd7 {
[%emt 0:03:27]} 24. Qxe5+ $40 {[%emt 0:00:00] White is out for blood.} Re7 {
[%emt 0:01:51] [#]} 25. Qd4 {[%emt 0:00:00] White is much more active. The
black rooks are badly placed.} Nxd5 {[%emt 0:04:06]} 26. Qa4+ $1 {[%emt 0:00:
00]} Qd7 $2 {[%emt 0:00:35] [#]} (26... Rd7 $16 27. Rxd5 (27. exd5 Be7 $14)
27... Bb7 28. Re5+ Be7) 27. Rxd5 $1 {[%emt 0:00:00] Pin. Weighted Error Value:
White=0.15 (very precise) /Black=0.26 (precise)} 1-0